bitfinex-derivatives/quotes_SOLF0:USTF0_20250514
["timestamp","ask_amount","ask_price","bid_price","bid_amount"]
[1747251490599,57.74,177.17,177.09,57.74]
[1747251490795,5.6432,177.18,177.14,5.6442]
[1747251490999,115.48,177.19,177.09,57.74]
[1747251491497,115.48,177.19,177.15,5.6438]
[1747251491699,57.74,177.19,177.15,5.6438]
[1747251492196,57.74,177.2,177.11,57.74]
[1747251492698,63.3826,177.2,177.11,57.74]
[1747251492890,57.74,177.2,177.11,57.74]
[1747251493094,57.74,177.2,177.12,1.7692]
[1747251493293,63.3825,177.2,177.16,5.6435]
[1747251493497,57.74,177.2,177.12,1.7692]
[1747251493803,57.74,177.2,177.12,11.64795771]
[1747251494093,63.3817,177.23,177.13,57.74]
[1747251494300,57.74,177.23,177.13,57.74]
[1747251494998,5.6422,177.21,177.17,5.6433]
[1747251495402,57.74,177.23,177.15,57.74]
[1747251495999,5.6423,177.21,177.17,5.6432]
[1747251496402,5.6423,177.21,177.15,57.74]
[1747251496702,57.74,177.23,177.15,57.74]
[1747251497003,9.87875771,177.22,177.12,57.74]
[1747251497201,57.74,177.21,177.12,57.74]
[1747251497399,5.6431,177.18,177.15,5.644]
[1747251497599,57.74,177.19,177.12,57.74]
[1747251498002,63.3828,177.19,177.15,5.6438]
[1747251498300,57.74,177.19,177.15,5.6438]
[1747251498605,63.3829,177.19,177.15,5.6438]
[1747251499108,57.74,177.19,177.16,5.6437]
[1747251499403,57.74,177.19,177.12,57.74]
[1747251499699,57.74,177.19,177.17,5.6433]
[1747251500091,63.3822,177.21,177.17,5.6433]
[1747251501011,57.74,177.21,177.18,5.643]
[1747251501199,63.3819,177.22,177.18,5.643]
[1747251501803,5.6421,177.21,177.18,5.643]
[1747251502206,57.74,177.22,177.18,5.643]
[1747251502400,63.3819,177.22,177.18,5.643]
[1747251503106,5.6421,177.21,177.18,5.643]
[1747251504108,57.74,177.22,177.16,5.6435]
[1747251504407,67.61875771,177.22,177.12,57.74]
[1747251504717,5.6428,177.19,177.15,5.6438]
[1747251505007,67.61875771,177.22,177.15,5.6438]
[1747251505309,67.61875771,177.22,177.12,57.74]
[1747251505502,57.74,177.22,177.12,67.61875771]
[1747251505698,57.74,177.22,177.12,71.27775771]
[1747251506008,5.6425,177.2,177.17,5.6432]
[1747251508012,5.6428,177.19,177.17,5.6432]
[1747251508215,57.74,177.22,177.17,5.6432]
[1747251509011,5.6426,177.2,177.12,71.27775771]
[1747251509215,57.74,177.22,177.12,71.27775771]
[1747251509617,5.6423,177.21,177.17,5.6431]
[1747251509911,57.74,177.22,177.17,5.6431]
[1747251510113,5.6423,177.21,177.17,5.6431]
[1747251510313,63.322,177.24,177.12,71.27775771]
[1747251510517,57.72,177.23,177.12,71.27775771]
[1747251510710,5.6416,177.23,177.2,5.6424]
[1747251511111,57.72,177.24,177.16,57.72]
[1747251511410,57.72,177.27,177.16,57.72]
[1747251511612,57.72,177.27,177.17,1.8389]
[1747251511811,57.72,177.27,177.18,9.87875771]
[1747251512013,63.2233,177.3,177.19,57.72]
[1747251512210,5.6396,177.29,177.21,9.87875771]
[1747251512407,57.72,177.31,177.23,5.6413]
[1747251513019,57.72,177.31,177.21,9.87875771]
[1747251513211,67.59875771,177.31,177.2,57.72]
[1747251513413,5.6402,177.27,177.2,57.72]
[1747251514024,5.6402,177.27,177.22,5.6415]
[1747251514514,9.87875771,177.25,177.16,57.7]
[1747251514715,9.87875771,177.22,177.13,57.7]
[1747251515019,115.42,177.21,177.14,5.6442]
[1747251515518,5.6433,177.18,177.14,5.6442]
[1747251515720,115.42,177.21,177.13,63.3446]
[1747251515914,9.87875771,177.19,177.13,5.6446]
[1747251516115,9.87875771,177.19,177.1,57.7]
[1747251516620,5.6438,177.16,177.1,57.7]
[1747251516815,57.7,177.17,177.11,5.6452]
[1747251517117,115.4,177.17,177.07,115.4]
[1747251517320,57.7,177.16,177.07,115.4]
[1747251517516,57.7,177.16,177.07,119.2495]
[1747251519120,57.7,177.16,177.14,5.644]
[1747251519325,57.7,177.16,177.07,119.2495]
[1747251519720,57.7,177.16,177.12,5.6448]
[1747251519918,57.7,177.16,177.07,119.2495]
[1747251520319,57.7,177.16,177.14,5.6441]
[1747251520619,57.7,177.16,177.07,119.2495]
[1747251522023,57.7,177.16,177.12,5.6448]
[1747251523227,63.3438,177.16,177.11,5.6452]
[1747251523726,57.7,177.16,177.07,61.5495]
[1747251524726,57.7,177.16,177.12,5.6447]
[1747251525427,57.7,177.16,177.13,5.6447]
[1747251525816,57.7,177.16,177.14,5.6443]
[1747251526927,57.7,177.16,177.15,5.644]
[1747251527123,3.6355,177.18,177.09,9.87875771]
[1747251527429,57.72,177.19,177.1,57.72]
[1747251527626,57.72,177.19,177.15,5.6438]
[1747251528224,67.59875771,177.19,176.99,11.298]
[1747251528528,9.87875771,177.16,177.04,57.72]
[1747251528732,5.6449,177.13,177.08,5.646]
[1747251529121,5.6449,177.13,177.04,57.72]
[1747251529326,5.645,177.12,177.08,5.646]
[1747251529528,121.1978,177.15,177.04,57.72]
[1747251529529,57.72,177.11,177.04,57.72]
[1747251529923,57.72,177.11,177.07,5.6464]
[1747251530126,115.44,177.11,177.01,57.72]
[1747251530427,121.0855,177.11,177.01,57.72]
[1747251531427,115.44,177.11,177.01,57.72]
[1747251531629,9.87875771,177.1,177.01,57.72]
[1747251532029,9.87875771,177.1,177.03,5.6478]
[1747251532228,5.6469,177.07,176.99,1.7702]
[1747251532432,57.74,177.06,177.02,5.648]
[1747251532728,57.74,177.06,176.98,57.72]
[1747251533125,57.74,177.06,177.01,5.6484]
[1747251533327,63.387,177.06,177.01,5.6484]
[1747251533730,57.74,177.06,176.98,57.72]
[1747251534127,57.74,177.06,176.98,61.4562]
[1747251534634,57.74,177.06,177.04,5.6473]
[1747251534819,57.74,177.1,176.98,61.4562]
[1747251535020,4.0,177.14,177.03,9.87875771]
[1747251535224,9.87875771,177.19,177.03,9.87875771]
[1747251535225,115.58,177.13,177.03,67.61875771]
[1747251535433,57.74,177.13,177.03,67.61875771]
[1747251535633,57.96,177.12,177.08,5.6461]
[1747251536633,63.6051,177.12,177.08,5.6461]
[1747251536829,57.96,177.12,177.07,5.6465]
[1747251537527,63.6052,177.12,177.07,5.6465]
[1747251537729,63.6052,177.12,177.08,5.6463]
[1747251537929,57.96,177.12,177.08,5.6463]
[1747251538834,57.96,177.12,177.09,5.6459]
[1747251539029,115.6,177.13,177.04,57.84]
[1747251539229,57.74,177.13,177.04,57.84]
[1747251539529,59.8319,177.15,177.06,9.87875771]
[1747251539725,59.8319,177.15,177.07,57.86]
[1747251540234,57.9,177.16,177.12,5.6449]
[1747251540535,63.5439,177.16,177.11,5.6451]
[1747251540733,63.5439,177.16,177.07,59.7147]
[1747251541136,57.9,177.16,177.12,5.6449]
[1747251541437,57.88,177.16,177.07,59.7147]
[1747251541635,57.88,177.16,177.09,9.87875771]
[1747251542835,57.88,177.16,177.15,5.644]
[1747251543538,57.88,177.16,177.14,5.6442]
[1747251543842,5.643,177.19,177.14,5.6442]
[1747251545039,5.6431,177.18,177.14,5.6442]
[1747251545835,57.88,177.2,177.11,57.84]
[1747251546934,5.6433,177.18,177.14,5.6441]
[1747251547335,57.88,177.2,177.11,57.84]
[1747251548138,5.6436,177.17,177.13,5.6445]
[1747251548338,5.6436,177.17,177.11,57.84]
[1747251549539,5.6436,177.17,177.13,5.6444]
[1747251550434,5.6437,177.16,177.13,5.6444]
[1747251550634,5.6437,177.16,177.11,57.84]
[1747251550635,9.87875771,177.19,177.12,5.6449]
[1747251550941,5.644,177.16,177.12,5.6449]
[1747251551339,63.924,177.16,177.12,5.6449]
[1747251551535,5.6441,177.15,177.12,5.6449]
[1747251551736,58.28,177.16,177.13,5.6447]
[1747251551937,58.28,177.16,177.11,57.84]
[1747251552337,63.9238,177.16,177.11,63.4851]
[1747251552744,58.28,177.16,177.11,63.4851]
[1747251553644,58.28,177.16,177.11,57.84]
[1747251554140,5.6447,177.13,177.11,57.84]
[1747251554336,58.28,177.16,177.11,57.84]
[1747251556042,5.6449,177.13,177.11,57.84]
[1747251556246,58.28,177.16,177.11,57.84]
[1747251556436,68.15875771,177.16,177.07,57.84]
[1747251556637,3.7216,177.15,177.07,63.4866]
[1747251556833,9.87875771,177.13,177.07,57.84]
[1747251557141,5.6467,177.07,177.04,5.6475]
[1747251558144,58.2,177.12,177.03,57.84]
[1747251558342,9.87875771,177.1,177.03,57.84]
[1747251559140,57.84,177.09,176.99,57.84]
[1747251559334,58.32,177.08,176.99,57.84]
[1747251560636,5.6469,177.06,177.02,5.6479]
[1747251561038,58.32,177.08,176.99,57.84]
[1747251561242,5.6463,177.08,177.03,5.6476]
[1747251561538,116.5,177.09,177.03,5.6476]
[1747251561943,5.6468,177.07,177.03,5.6476]
[1747251563146,5.6464,177.08,176.99,57.84]
[1747251563343,116.5,177.09,176.99,57.84]
[1747251563646,5.6465,177.08,177.03,5.6476]
[1747251563846,5.6465,177.08,176.99,57.84]
[1747251564045,116.5,177.09,176.99,57.84]
[1747251564245,5.6466,177.07,177.02,5.6479]
[1747251564445,116.5,177.09,177.02,5.6479]
[1747251564636,5.6468,177.07,177.02,5.6479]
[1747251564945,116.5,177.09,177.02,5.6479]
[1747251565144,5.6466,177.08,177.02,5.6479]
[1747251565443,5.6466,177.08,177.03,5.6478]
[1747251565947,5.6466,177.07,177.02,5.6481]
[1747251566148,116.5,177.09,176.99,57.84]
[1747251566348,9.87875771,177.08,176.99,57.84]
[1747251566548,5.6476,177.04,176.99,63.4889]
[1747251566747,116.5,177.09,176.99,57.84]
[1747251567144,5.6474,177.05,177.01,5.6483]
[1747251567950,5.647,177.06,177.02,5.6482]
[1747251568552,5.6472,177.05,177.01,5.6484]
[1747251568753,116.5,177.09,177.01,5.6484]
[1747251569054,5.6474,177.05,177.01,5.6484]
[1747251570052,5.647,177.06,177.03,5.6477]
[1747251570252,116.5,177.09,176.99,57.84]
[1747251570452,116.5,177.09,176.99,59.7423]
[1747251571946,122.1462,177.09,177.04,5.6473]
[1747251572147,116.5,177.09,177.04,5.6473]
[1747251572858,5.6465,177.08,177.04,5.6473]
[1747251573357,122.1461,177.09,176.99,59.7423]
[1747251573657,58.48,177.13,177.0,9.87875771]
[1747251573858,58.46,177.12,177.03,9.87875771]
[1747251574155,5.6455,177.11,177.04,58.48]
[1747251574658,64.1052,177.12,177.04,58.48]
[1747251574855,58.46,177.12,177.04,58.48]
[1747251575056,58.46,177.12,177.08,5.6462]
[1747251575955,58.46,177.12,177.04,60.2759]
[1747251576356,64.1051,177.12,177.04,60.2759]
[1747251576557,64.1051,177.12,177.07,5.6463]
[1747251576753,58.46,177.12,177.04,60.2759]
[1747251577058,58.46,177.12,177.09,5.6457]
[1747251577260,58.48,177.13,177.04,60.2759]
[1747251577560,58.48,177.17,177.06,9.87875771]
[1747251577754,116.82,177.17,177.07,1.9281]
[1747251577954,116.82,177.17,177.08,58.48]
[1747251578157,116.82,177.17,177.12,5.6447]
[1747251578959,58.48,177.17,177.12,5.6447]
[1747251579155,116.78,177.17,177.12,5.6447]
[1747251579356,116.78,177.17,177.13,5.6446]
[1747251579656,116.78,177.17,177.08,58.48]
[1747251580254,5.6437,177.16,177.08,58.48]
[1747251580752,122.4237,177.17,177.08,58.48]
[1747251581362,122.4237,177.17,177.12,5.6447]
[1747251581863,5.6437,177.16,177.12,5.6447]
[1747251582463,5.644,177.15,177.11,5.6452]
[1747251583262,5.6438,177.16,177.08,58.48]
[1747251583461,116.78,177.17,177.08,58.48]
[1747251583962,122.4234,177.17,177.08,58.48]
[1747251584561,116.78,177.17,177.12,5.6447]
[1747251584865,116.78,177.17,177.08,58.48]
[1747251586063,122.4236,177.17,177.13,5.6445]
[1747251586263,116.78,177.17,177.09,58.08]
[1747251586457,58.48,177.17,177.09,58.08]
[1747251586653,58.48,177.17,177.14,5.6441]
[1747251587665,64.1235,177.17,177.13,5.6447]
[1747251589168,58.48,177.17,177.14,5.6443]
[1747251589866,64.1234,177.17,177.13,5.6446]
[1747251590965,58.48,177.17,177.14,5.6442]
[1747251591365,58.48,177.17,177.09,58.08]
[1747251591966,58.48,177.17,177.14,5.6442]
[1747251592771,58.48,177.17,177.09,58.08]
[1747251593567,5.6439,177.16,177.12,5.6449]
[1747251594369,5.6441,177.15,177.12,5.6449]
[1747251594769,58.48,177.17,177.12,5.6449]
[1747251594970,5.644,177.16,177.12,5.6449]
[1747251595872,5.644,177.16,177.13,5.6446]
[1747251596471,5.644,177.16,177.12,5.6449]
[1747251597071,5.6441,177.15,177.12,5.6449]
[1747251598075,58.48,177.17,177.13,5.6446]
[1747251598966,64.1235,177.17,177.13,5.6446]
[1747251599670,58.48,177.17,177.14,5.6443]
[1747251600171,64.1235,177.17,177.13,5.6445]
[1747251600575,58.48,177.17,177.09,58.08]
[1747251601172,58.48,177.17,177.07,1.9281]
[1747251601372,58.48,177.17,177.08,57.86]
[1747251601576,5.6438,177.16,177.12,5.6448]
[1747251602080,58.48,177.17,177.12,5.6448]
[1747251602676,58.48,177.17,177.09,57.86]
[1747251602878,58.48,177.17,177.05,57.86]
[1747251602879,9.87875771,177.15,177.05,57.86]
[1747251603076,9.87875771,177.12,177.05,57.86]
[1747251603376,5.6461,177.09,177.06,5.6468]
[1747251603570,9.87875771,177.12,177.05,57.86]
[1747251603772,5.6459,177.1,177.07,5.6466]
[1747251603972,9.87875771,177.12,177.05,57.86]
[1747251604578,5.6459,177.1,177.06,5.6467]
[1747251604776,63.5859,177.1,177.06,5.6467]
[1747251605180,57.94,177.1,177.0,59.6891]
[1747251605382,9.87875771,177.09,177.0,59.6891]
[1747251605776,57.94,177.1,177.0,59.6891]
[1747251606080,57.94,177.1,177.01,70.14315771]
[1747251606582,57.94,177.1,177.02,1.8865]
[1747251609074,57.94,177.1,177.06,5.6467]
[1747251609582,57.94,177.1,177.08,5.646]
[1747251610282,57.94,177.1,177.09,5.6459]
[1747251610677,57.86,177.13,177.05,58.32]
[1747251610879,58.32,177.14,177.09,5.6457]
[1747251611182,58.32,177.14,177.05,58.32]
[1747251612177,5.6441,177.15,177.05,58.32]
[1747251612480,58.28,177.16,177.05,58.32]
[1747251612883,5.6441,177.15,177.1,5.6454]
[1747251613175,58.28,177.16,177.1,5.6454]
[1747251613380,58.28,177.16,177.08,57.86]
[1747251613779,58.28,177.16,177.08,63.5062]
[1747251614284,5.6449,177.13,177.08,63.5062]
[1747251615584,5.6446,177.14,177.08,57.86]
[1747251615779,58.28,177.16,177.08,57.86]
[1747251616184,58.28,177.16,177.12,5.645]
[1747251616387,58.28,177.16,177.08,57.86]
[1747251616883,63.9237,177.16,177.08,57.86]
[1747251617183,5.6437,177.16,177.08,57.86]
[1747251617684,5.6437,177.16,177.12,5.6448]
[1747251618183,63.5035,177.17,177.13,5.6445]
[1747251618482,3.7476,177.19,177.1,58.28]
[1747251618678,58.28,177.2,177.1,58.28]
[1747251618882,57.86,177.21,177.1,58.28]
[1747251619083,68.15875771,177.2,177.1,58.28]
[1747251619582,68.15875771,177.2,177.11,5.6451]
[1747251620085,5.644,177.16,177.12,5.645]
[1747251620485,68.15875771,177.2,177.1,58.28]
[1747251620684,5.6435,177.17,177.13,5.6444]
[1747251620884,58.22,177.18,177.13,5.6444]
[1747251621386,58.22,177.18,177.1,58.28]
[1747251621881,5.644,177.16,177.12,5.645]
[1747251622088,9.87875771,177.17,177.06,9.87875771]
[1747251622284,67.73875771,177.17,177.07,116.06]
[1747251622478,5.6446,177.14,177.1,5.6454]
[1747251622684,5.5909,177.16,177.1,5.6454]
[1747251622880,5.6453,177.11,177.08,5.6461]
[1747251623084,5.6453,177.11,177.07,57.86]
[1747251623488,5.6457,177.1,177.07,63.5065]
[1747251623883,57.86,177.13,177.07,57.86]
[1747251624077,5.6456,177.11,177.07,63.5063]
[1747251624384,57.86,177.13,177.07,63.5063]
[1747251624586,5.6456,177.11,177.08,5.6462]
[1747251626584,5.6456,177.1,177.08,5.6462]
[1747251627088,5.6456,177.1,177.07,57.86]
[1747251627589,5.6456,177.1,177.07,63.5064]
[1747251627887,5.6453,177.11,177.07,57.86]
[1747251628288,5.6453,177.11,177.08,5.6462]
[1747251628490,5.6457,177.1,177.08,5.6462]
[1747251628989,5.6455,177.11,177.08,5.6462]
[1747251629588,5.6455,177.11,177.09,5.6459]
[1747251629782,57.86,177.13,177.07,57.86]
[1747251629989,115.9,177.13,177.07,57.86]
[1747251630289,63.6847,177.13,177.09,5.6457]
[1747251630491,63.6847,177.13,177.07,57.86]
[1747251630789,58.04,177.13,177.07,57.86]
[1747251631294,58.04,177.13,177.08,5.6461]
[1747251631488,5.6451,177.12,177.08,5.6461]
[1747251631892,58.04,177.13,177.09,5.6458]
[1747251632692,5.5909,177.16,177.07,57.86]
[1747251632993,121.5434,177.17,177.07,57.86]
[1747251633389,121.5434,177.17,177.13,5.6446]
[1747251633592,115.9,177.17,177.13,5.6446]
[1747251633794,115.9,177.17,177.07,57.86]
[1747251634000,115.9,177.17,177.13,5.6445]
[1747251634593,121.5434,177.17,177.13,5.6445]
[1747251634993,63.5034,177.17,177.13,5.6445]
[1747251636504,57.86,177.17,177.14,5.6443]
[1747251636994,57.86,177.17,177.11,58.06]
[1747251637897,57.86,177.17,177.13,5.6445]
[1747251638690,63.7613,177.21,177.11,58.06]
[1747251638995,58.06,177.21,177.12,9.87875771]
[1747251639188,58.06,177.21,177.12,15.47825771]
[1747251639795,63.7022,177.21,177.17,5.6432]
[1747251639991,58.06,177.21,177.12,15.47825771]
[1747251640189,63.7023,177.21,177.12,15.47825771]
[1747251640992,63.7023,177.21,177.17,5.6433]
[1747251641195,58.06,177.21,177.12,15.47825771]
[1747251641599,58.06,177.21,177.17,5.6433]
[1747251642097,63.7022,177.21,177.17,5.6433]
[1747251647099,58.06,177.21,177.15,5.6438]
[1747251647800,5.643,177.19,177.15,5.6438]
[1747251648198,5.6425,177.2,177.12,5.5995]
[1747251648499,58.06,177.21,177.12,5.5995]
[1747251648701,63.7023,177.21,177.12,5.5995]
[1747251648998,58.06,177.21,177.12,5.5995]
[1747251649798,58.06,177.21,177.12,63.3795]
[1747251650001,5.6429,177.19,177.15,5.6438]
[1747251651594,5.6427,177.2,177.16,5.6437]
[1747251652502,63.7022,177.21,177.17,5.6434]
[1747251655095,58.06,177.21,177.17,5.6434]
[1747251655302,5.6425,177.2,177.16,5.6436]
[1747251655803,63.7022,177.21,177.12,63.3795]
[1747251656504,63.7022,177.21,177.17,5.6433]
[1747251657104,5.6425,177.2,177.17,5.6433]
[1747251659107,5.6425,177.2,177.16,5.6436]
[1747251659608,5.6425,177.2,177.17,5.6433]
[1747251660108,5.6425,177.2,177.12,63.3795]
[1747251660304,5.6425,177.2,177.16,5.6436]
[1747251660604,5.6428,177.19,177.12,5.5995]
[1747251660808,9.87875771,177.19,177.11,63.685]
[1747251661106,61.3486,177.18,177.11,58.04]
[1747251661907,5.6437,177.16,177.11,58.04]
[1747251662103,63.22,177.18,177.11,58.04]
[1747251662607,57.78,177.18,177.11,115.82]
[1747251662907,58.06,177.21,177.11,115.82]
[1747251663108,58.06,177.21,177.18,5.6429]
[1747251664210,63.7022,177.21,177.17,5.6433]
[1747251664404,58.06,177.21,177.12,5.5665]
[1747251664608,5.6425,177.2,177.17,5.6434]
[1747251664803,58.06,177.21,177.17,5.6434]
[1747251665209,63.7023,177.21,177.17,5.6434]
[1747251665610,63.7023,177.21,177.18,5.643]
[1747251666013,63.7023,177.21,177.12,5.5665]
[1747251666313,58.06,177.21,177.12,5.5665]
[1747251666522,57.76,177.24,177.12,15.44525771]
[1747251666718,57.78,177.26,177.15,9.87875771]
[1747251666923,57.78,177.26,177.16,115.54]
[1747251667112,63.4208,177.26,177.16,115.54]
[1747251667723,63.4004,177.27,177.16,115.54]
[1747251668018,121.1804,177.27,177.16,115.54]
[1747251668523,5.6406,177.26,177.16,115.54]
[1747251669017,5.6409,177.25,177.21,5.6419]
[1747251669222,115.54,177.27,177.16,115.54]
[1747251669518,57.76,177.27,177.16,115.54]
[1747251669721,5.5424,177.3,177.18,9.87875771]
[1747251669918,57.76,177.32,177.21,9.87875771]
[1747251670122,5.6391,177.31,177.22,115.52]
[1747251670621,5.6391,177.31,177.26,5.6403]
[1747251671423,5.6391,177.31,177.22,115.52]
[1747251671724,5.6391,177.31,177.26,5.6404]
[1747251672522,5.6393,177.3,177.26,5.6404]
[1747251672723,5.6393,177.3,177.25,5.6408]
[1747251673223,5.6393,177.3,177.26,5.6405]
[1747251674524,5.6393,177.3,177.25,5.6407]
[1747251674924,115.52,177.32,177.22,115.52]
[1747251675118,9.87875771,177.31,177.23,5.6414]
[1747251675425,5.6401,177.28,177.22,57.74]
[1747251675618,9.87875771,177.31,177.24,5.641]
[1747251675818,9.87875771,177.31,177.19,5.5694]
[1747251676018,5.6404,177.27,177.2,115.5]
[1747251676217,9.87875771,177.31,177.2,115.5]
[1747251676623,5.6397,177.29,177.2,115.5]
[1747251677023,5.6397,177.29,177.19,5.5694]
[1747251677226,5.6399,177.28,177.2,115.5]
[1747251677424,9.87875771,177.31,177.2,115.5]
[1747251677624,5.6398,177.29,177.24,5.6411]
[1747251677825,9.87875771,177.31,177.24,5.6411]
[1747251678128,5.6396,177.29,177.24,5.6411]
[1747251680126,5.6396,177.29,177.2,115.5]
[1747251680326,5.6393,177.3,177.2,115.5]
[1747251680724,5.6393,177.3,177.25,5.6405]
[1747251681026,5.6391,177.31,177.24,57.74]
[1747251681221,57.76,177.32,177.24,115.48]
[1747251681424,5.744,177.35,177.24,125.35875771]
[1747251681726,5.744,177.35,177.3,5.639]
[1747251682427,57.74,177.36,177.28,57.74]
[1747251683122,5.6381,177.34,177.3,5.639]
[1747251683329,57.74,177.36,177.28,57.74]
[1747251684429,5.6382,177.34,177.3,5.6391]
[1747251684727,57.74,177.36,177.28,57.74]
[1747251684927,5.6383,177.33,177.29,5.6394]
[1747251685929,5.6388,177.32,177.28,63.3799]
[1747251686129,67.61875771,177.36,177.28,5.6399]
[1747251686530,5.6389,177.32,177.28,5.6399]
[1747251686829,5.6389,177.32,177.29,5.6394]
[1747251687230,5.6389,177.32,177.28,5.6398]
[1747251688929,63.3584,177.33,177.27,57.74]
[1747251689124,57.72,177.33,177.27,57.74]
[1747251689527,57.72,177.33,177.29,5.6394]
[1747251690431,57.72,177.33,177.27,57.74]
[1747251690734,57.74,177.36,177.27,57.74]
[1747251690931,115.46,177.36,177.31,5.6389]
[1747251691230,57.74,177.36,177.31,5.6389]
[1747251692428,57.72,177.37,177.31,5.6389]
[1747251692634,57.72,177.37,177.32,5.6386]
[1747251693028,5.6377,177.35,177.27,63.2154]
[1747251693324,5.6377,177.35,177.31,5.6389]
[1747251694029,9.87875771,177.38,177.27,63.2154]
[1747251694228,67.59875771,177.38,177.27,63.2154]
[1747251694532,5.6376,177.36,177.32,5.6386]
[1747251696027,9.87875771,177.38,177.27,63.2154]
[1747251696234,63.0888,177.4,177.29,9.87875771]
[1747251696433,63.0888,177.4,177.3,57.72]
[1747251696434,120.8088,177.4,177.3,57.72]
[1747251696734,5.6366,177.39,177.31,57.7]
[1747251696930,57.72,177.42,177.31,57.7]
[1747251697130,5.6362,177.4,177.36,5.6371]
[1747251697525,57.72,177.42,177.31,57.7]
[1747251697732,5.6359,177.41,177.31,57.7]
[1747251698030,57.72,177.42,177.32,9.87875771]
[1747251698835,5.636,177.41,177.37,5.6368]
[1747251701338,5.6361,177.4,177.37,5.6368]
[1747251702335,5.6359,177.41,177.37,5.6368]
[1747251702527,5.6359,177.41,177.38,5.6367]
[1747251703733,5.6361,177.4,177.38,5.6367]
[1747251704337,57.72,177.42,177.37,5.6369]
[1747251704532,57.72,177.42,177.35,57.7]
[1747251704733,57.72,177.42,177.36,5.6372]
[1747251705033,57.72,177.42,177.35,57.7]
[1747251705637,5.6361,177.4,177.36,5.6373]
[1747251706037,57.72,177.42,177.36,5.6373]
[1747251706238,57.72,177.42,177.35,57.7]
[1747251706437,5.6359,177.41,177.38,5.6367]
[1747251708236,5.6361,177.4,177.37,5.6369]
[1747251708540,5.6364,177.39,177.37,5.6369]
[1747251709027,5.6364,177.39,177.36,5.6372]
[1747251709631,9.87875771,177.41,177.35,5.6376]
[1747251710537,5.6371,177.37,177.35,5.6376]
[1747251710841,9.87875771,177.41,177.35,5.6376]
[1747251711336,5.6369,177.38,177.35,5.6376]
[1747251711638,9.87875771,177.41,177.33,57.7]
[1747251711839,5.6363,177.4,177.33,57.7]
[1747251712034,57.68,177.42,177.33,57.7]
[1747251713137,5.6366,177.39,177.36,5.6373]
[1747251713439,57.68,177.42,177.33,57.7]
[1747251714240,57.68,177.42,177.35,5.6376]
[1747251714541,57.68,177.42,177.33,57.68]
[1747251714941,5.6372,177.37,177.34,5.6378]
[1747251716241,5.6372,177.37,177.35,5.6376]
[1747251717937,5.6377,177.35,177.33,63.3182]
[1747251718137,57.68,177.38,177.33,57.68]
[1747251718840,5.638,177.34,177.33,57.68]
[1747251719232,5.6378,177.35,177.32,5.6384]
[1747251719740,5.6378,177.35,177.29,57.68]
[1747251720246,5.6378,177.35,177.32,5.6384]